bitfinex/quotes_ETHUSD_20240709
["timestamp","ask_amount","ask_price","bid_price","bid_amount"]
[1720503704716,0.0602644,3069.4,3068.4,0.0651625]
[1720503704916,0.0602644,3069.4,3068.5,0.55]
[1720503705121,0.0602644,3069.4,3068.6,0.06515892]
[1720503705453,0.0602644,3069.4,3068.7,0.55]
[1720503705741,0.0602644,3069.4,3068.6,0.55]
[1720503705939,0.0602644,3069.4,3068.4,0.55]
[1720503707921,0.0602644,3069.4,3068.3,3.0]
[1720503708130,0.0602644,3069.4,3068.3,0.16236771]
[1720503708341,0.0602644,3069.4,3068.2,2.274]
[1720503708503,0.0602644,3069.4,3067.7,2.274]
[1720503708710,0.25267644,3069.3,3067.7,2.274]
[1720503709013,0.06035428,3069.2,3067.7,2.274]
[1720503709759,0.06035428,3069.2,3067.8,0.06517807]
[1720503709908,0.06035428,3069.2,3067.8,1.19951508]
[1720503710105,2.4665,3069.5,3067.8,3.06517807]
[1720503710341,0.24665,3069.4,3068.2,2.274]
[1720503710543,0.30694689,3069.4,3068.3,0.06517094]
[1720503711039,0.30694689,3069.4,3068.2,2.274]
[1720503711615,0.30694689,3069.4,3068.0,3.0]
[1720503711818,3.50129149,3069.3,3067.9,0.55]
[1720503712048,0.06030832,3069.2,3067.9,0.55]
[1720503712408,0.06030832,3069.2,3067.8,3.0]
[1720503713030,2.3208,3069.1,3067.7,2.274]
[1720503713233,0.29830475,3069.0,3067.7,2.274]
[1720503713463,2.3208,3068.8,3067.7,2.274]
[1720503713762,0.06003929,3068.7,3067.3,2.3814755]
[1720503713926,0.06003929,3068.7,3067.4,1.1346086]
[1720503714132,0.23808393,3068.6,3067.4,1.1346086]
[1720503714335,0.29808942,3068.6,3067.5,1.1346086]
[1720503714564,0.29808942,3068.6,3067.3,2.3814755]
[1720503714738,0.29808942,3068.6,3067.4,1.13461615]
[1720503714939,0.29808942,3068.6,3067.5,1.13462018]
[1720503716242,0.29808942,3068.6,3067.2,2.274]
[1720503716562,2.3836,3068.5,3067.3,1.13468806]
[1720503716764,2.3836,3068.5,3067.2,2.274]
[1720503716972,0.05981778,3068.4,3067.2,2.274]
[1720503717467,2.2779,3068.3,3066.8,2.38180028]
[1720503717640,2.2779,3068.3,3066.9,1.13478903]
[1720503717641,0.2935155,3068.2,3066.9,1.13478903]
[1720503718165,0.2935155,3068.2,3066.8,1.70220592]
[1720503718329,0.2935155,3068.2,3066.9,1.13480177]
[1720503718535,0.2935155,3068.2,3066.7,4.81913712]
[1720503718855,0.25714155,3068.1,3066.8,1.13480396]
[1720503719174,0.25714155,3068.1,3066.4,1.36467885]
[1720503719175,2.46943283,3068.0,3066.5,2.38454159]
[1720503719335,2.46943283,3068.0,3066.4,0.68233942]
[1720503719538,2.46943283,3068.0,3066.2,2.38454159]
[1720503719729,1.1294856,3067.9,3066.3,1.13499463]
[1720503719967,1.1294856,3067.9,3066.1,4.65854159]
[1720503719968,0.24694328,3067.9,3066.1,4.82325284]
[1720503720169,0.05944366,3067.8,3066.2,1.13502136]
[1720503720658,0.05944366,3067.8,3066.2,4.13502136]
[1720503720866,0.24694328,3067.9,3066.2,4.13502136]
[1720503720867,0.24694328,3067.9,3066.3,1.68502915]
[1720503721164,0.05940391,3067.8,3066.3,3.55]
[1720503721370,0.33101863,3067.8,3066.4,1.20020882]
[1720503721568,0.27161472,3067.8,3066.5,1.68499736]
[1720503721772,0.27161472,3067.8,3066.5,0.55]
[1720503722668,2.4098,3068.0,3066.6,2.33920847]
[1720503722874,0.05917261,3067.9,3066.7,1.68483752]
[1720503723050,0.05917261,3067.9,3066.8,0.06520294]
[1720503723248,0.24689726,3067.9,3066.8,0.06520294]
[1720503723560,2.4098,3068.0,3066.8,0.06520294]
[1720503723783,2.4265,3068.6,3067.1,2.274]
[1720503723945,2.4265,3068.6,3067.2,1.88224234]
[1720503724148,2.4265,3068.6,3067.3,1.19990292]
[1720503724350,2.4265,3068.6,3067.4,1.68471871]
[1720503724658,2.4265,3068.6,3067.5,0.06518421]
[1720503724862,2.4265,3068.6,3067.6,2.824]
[1720503725035,2.4265,3068.6,3067.7,3.06518423]
[1720503725242,2.4265,3068.6,3067.7,3.0]
[1720503727254,2.4265,3068.6,3067.1,2.274]
[1720503727649,2.4265,3068.6,3066.6,2.95538807]
[1720503727855,0.05943212,3068.5,3066.7,1.1348008]
[1720503728363,0.05943212,3068.5,3066.7,1.81618887]
[1720503728557,0.24859321,3068.4,3066.8,1.6848008]
[1720503728857,0.05939806,3068.3,3066.8,0.55]
[1720503729056,2.2561,3068.2,3066.7,3.0]
[1720503729346,0.05959087,3068.1,3066.7,3.0]
[1720503729580,0.05959087,3068.1,3066.6,5.274]
[1720503729893,0.23156909,3068.0,3066.7,1.13483555]
[1720503730042,0.23156909,3068.0,3066.7,4.13483555]
[1720503730247,0.05950218,3067.9,3066.7,3.0]
[1720503730556,0.05950218,3067.9,3066.6,2.274]
[1720503730557,0.05950218,3067.9,3066.6,5.274]
[1720503730764,0.05950218,3067.9,3066.7,1.75004261]
[1720503730980,2.2561,3068.2,3067.1,2.274]
[1720503731292,0.05942779,3068.1,3067.2,0.55]
[1720503731787,0.05942779,3068.1,3067.2,3.55]
[1720503732083,0.05942779,3068.1,3067.3,0.06518922]
[1720503732275,0.05942779,3068.1,3067.4,0.55]
[1720503732473,8.10712887,3068.7,3067.5,0.06518396]
[1720503732675,0.05966001,3068.6,3067.6,2.824]
[1720503732852,0.05966001,3068.6,3067.7,0.06518298]
[1720503733046,0.05966001,3068.6,3067.6,2.824]
[1720503733047,0.05966001,3068.6,3067.6,2.274]
[1720503733264,0.05966001,3068.6,3067.7,3.0]
[1720503733680,0.05966001,3068.6,3067.6,2.274]
[1720503734166,0.05966001,3068.6,3067.3,3.0]
[1720503734370,0.81667889,3068.5,3067.4,1.68454356]
[1720503734555,0.81667889,3068.5,3067.4,0.55]
[1720503734759,0.0596387,3068.4,3067.3,3.55]
[1720503734972,0.0596387,3068.4,3067.1,2.274]
[1720503735273,0.0596387,3068.4,3066.6,1.70400514]
[1720503735274,2.3862,3068.3,3066.6,2.95538807]
[1720503735485,2.3862,3068.3,3066.6,2.274]
[1720503735486,0.05968788,3068.2,3066.6,2.274]
[1720503735651,0.24458879,3068.1,3066.7,1.13485647]
[1720503735854,0.05956197,3068.0,3066.7,1.13485647]
[1720503736055,0.05956197,3068.0,3066.6,2.274]
[1720503736281,0.05956197,3068.0,3066.7,1.13483433]
[1720503736506,0.05956197,3068.0,3066.8,0.06520234]
[1720503736789,0.05956197,3068.0,3067.1,2.274]
[1720503736988,2.3862,3068.3,3067.1,2.274]
[1720503737190,0.05940613,3067.9,3067.1,2.274]
[1720503737365,2.3862,3068.3,3067.1,2.274]
[1720503737567,2.3862,3068.3,3066.8,3.0]
[1720503737568,0.23862,3068.2,3066.8,3.0]
[1720503737777,0.29805065,3068.2,3066.7,3.0]
[1720503737978,0.26842507,3068.1,3066.8,1.13476084]
[1720503738490,0.05939427,3068.0,3066.7,3.0]
[1720503738695,0.05939427,3068.0,3066.6,5.274]
[1720503738857,0.05939427,3068.0,3066.7,1.68482287]
[1720503739064,0.05939427,3068.0,3066.7,3.55]
[1720503739265,0.05939427,3068.0,3066.7,3.0]
[1720503739593,2.4041,3067.9,3066.6,2.274]
[1720503739763,0.24634943,3067.8,3066.1,3.12315591]
[1720503739964,0.30557428,3067.8,3066.2,1.13499187]
[1720503740200,0.27096743,3067.7,3066.1,2.274]
[1720503740404,2.4041,3067.6,3066.1,2.274]
[1720503740601,2.4041,3067.6,3065.8,0.68217844]
[1720503740770,0.05910486,3067.5,3065.8,1.81725345]
[1720503740971,0.05910486,3067.5,3065.9,1.13507501]
[1720503741179,0.24632049,3067.4,3065.7,0.68217844]
[1720503741366,0.24632049,3067.4,3065.6,2.44102132]
[1720503741367,0.24632049,3067.4,3065.8,1.1351764]
[1720503741573,0.05880334,3067.3,3065.6,3.12319976]
[1720503741796,0.05880334,3067.3,3065.7,1.68516648]
[1720503741995,0.05880334,3067.3,3065.8,1.13516648]
[1720503742169,0.05880334,3067.3,3065.9,0.55]
[1720503742371,2.2854,3067.2,3065.6,3.12319976]
[1720503742578,2.2854,3067.2,3065.7,3.0]
[1720503742883,2.2854,3067.2,3065.6,2.274]
[1720503743087,0.23442033,3067.1,3065.6,2.274]
[1720503743315,0.05861353,3067.0,3065.6,2.274]
[1720503743868,0.05861353,3067.0,3065.7,1.13514987]
[1720503744134,2.2854,3067.2,3066.1,2.274]
[1720503744404,2.2854,3067.2,3066.2,0.55]
[1720503744616,0.22854,3067.1,3066.1,2.274]
[1720503744972,0.05847133,3067.0,3066.1,2.274]
[1720503746170,0.05847133,3067.0,3065.9,3.0]
[1720503746389,0.05847133,3067.0,3065.6,2.274]
[1720503746793,0.22854,3067.1,3065.6,2.274]
[1720503747117,2.2854,3067.2,3066.1,2.274]
[1720503747287,2.2854,3067.2,3066.2,0.06521482]
[1720503748902,2.2854,3067.2,3066.3,0.55]
[1720503749416,2.2854,3067.2,3066.2,0.61521056]
[1720503749624,2.2854,3067.2,3066.4,0.06521056]
[1720503750121,2.2854,3067.2,3066.2,3.55]
[1720503750879,2.2854,3067.2,3066.3,0.06521058]
[1720503751119,2.2854,3067.2,3066.4,0.55]
[1720503751294,2.3864,3067.6,3066.5,0.06520691]
[1720503751495,2.3864,3067.6,3066.6,0.55]
[1720503751699,0.05867706,3067.5,3066.7,0.06520692]
[1720503751899,0.05867706,3067.5,3066.6,0.55]
[1720503752091,0.05867706,3067.5,3066.4,0.55]
[1720503752717,0.05867706,3067.5,3066.5,1.707]
[1720503752898,0.05867706,3067.5,3066.6,0.55]
[1720503753285,0.05867706,3067.5,3066.7,0.06520696]
[1720503753533,0.05867706,3067.5,3066.9,1.707]
[1720503753913,2.3864,3067.6,3067.0,0.55]
[1720503755313,2.3864,3067.6,3066.9,1.707]
[1720503755515,5.79842887,3068.4,3067.0,0.55]
[1720503755516,2.3286,3068.3,3067.0,0.55]
[1720503755816,2.3286,3068.3,3067.1,0.06519652]
[1720503756014,0.0590779,3068.2,3067.1,0.06519652]
[1720503756384,0.0590779,3068.2,3067.3,1.707]
[1720503756591,0.0590779,3068.2,3067.4,1.74976078]
[1720503756790,2.4797,3068.8,3067.7,1.707]
[1720503757091,0.05935277,3068.7,3067.8,0.06518324]
[1720503757293,2.4797,3068.8,3067.8,0.06518324]
[1720503757512,0.05938073,3068.7,3067.8,0.06518324]
[1720503758130,2.4797,3068.8,3067.8,0.06518324]
[1720503758515,0.05938703,3068.7,3067.8,0.06518324]
[1720503758713,0.05938703,3068.7,3067.7,1.707]
[1720503758890,0.2539087,3068.6,3067.7,1.707]
[1720503760156,0.2539087,3068.6,3067.5,3.0]
[1720503760349,0.2539087,3068.6,3067.4,0.55]
[1720503765143,0.2539087,3068.6,3067.3,1.707]
[1720503765325,2.2847,3068.5,3067.3,1.707]
[1720503765862,0.05931937,3068.4,3067.3,1.707]
[1720503766366,0.05931937,3068.4,3067.4,0.55]
[1720503766571,0.05931937,3068.4,3067.7,1.707]
[1720503766853,0.23440194,3068.4,3067.7,1.707]
[1720503767833,2.2847,3068.5,3067.8,0.06518932]
[1720503768156,2.3598,3068.9,3067.8,0.06518932]
[1720503768526,0.05937112,3068.8,3067.8,0.06518932]
[1720503770360,0.05937112,3068.8,3068.1,1.707]
[1720503770522,0.05937112,3068.8,3068.2,0.55]
[1720503770722,5.79842887,3069.4,3068.3,0.06517016]
[1720503771149,0.05968651,3069.3,3068.3,0.06517016]
[1720503772327,0.05968651,3069.3,3068.5,1.707]
[1720503772527,0.05968651,3069.3,3068.6,0.61516311]
[1720503772741,5.79842887,3069.9,3068.6,0.61516311]
[1720503772948,0.05967264,3069.2,3068.6,0.55]
[1720503773265,5.79842887,3069.9,3068.6,0.55]
[1720503773462,0.05982128,3069.8,3068.6,0.55]
[1720503774549,0.05982128,3069.8,3068.9,1.707]
[1720503774750,0.05982128,3069.8,3069.0,0.61515583]
[1720503775074,2.4104,3070.0,3069.0,0.61515583]
[1720503775075,0.05994753,3069.7,3069.0,0.61515583]
[1720503775566,2.4104,3070.0,3069.0,0.61515583]
[1720503776062,0.05996657,3069.9,3069.0,0.61515583]
[1720503776368,0.05996657,3069.9,3069.7,1.707]
[1720503776571,8.07592887,3071.1,3069.8,0.55]
[1720503776778,0.80759289,3071.0,3069.9,0.06513721]
[1720503776938,0.05630742,3071.0,3069.8,0.61513731]
[1720503778134,0.05630742,3071.0,3070.1,1.707]
[1720503778431,2.3177,3071.6,3070.2,0.55]
[1720503778776,0.05461188,3071.5,3070.5,1.707]
[1720503778954,0.05461188,3071.5,3070.9,1.707]
[1720503779134,0.05461188,3071.5,3071.0,0.06511564]
[1720503779336,2.4006,3072.1,3071.0,0.06511564]
[1720503779633,2.4006,3072.1,3070.9,1.707]
[1720503779862,0.0546424,3072.0,3070.9,1.707]
[1720503780179,0.24552424,3071.9,3071.0,0.06511564]
[1720503780466,3.0,3072.6,3071.3,1.707]
[1720503780467,0.05529044,3071.8,3071.3,1.707]
[1720503780667,5.79842887,3072.5,3071.4,0.06510312]
[1720503780833,0.05345865,3072.4,3071.5,0.55]
[1720503781032,2.3254,3072.6,3071.5,0.55]
[1720503781342,0.05366748,3072.5,3071.4,0.55]
[1720503781690,0.29157423,3072.5,3071.4,0.55]
[1720503782350,0.29157423,3072.5,3071.4,0.6151014]
[1720503782558,0.05366748,3072.5,3071.4,0.61510136]
[1720503782753,0.05366748,3072.5,3071.4,0.55]
[1720503782953,10.72182093,3073.1,3071.4,0.55]
[1720503783268,1.07218209,3073.0,3071.3,5.269]
[1720503783475,0.05379316,3072.9,3071.3,2.269]
[1720503784793,2.4999,3072.8,3070.8,4.7593]
[1720503784930,0.45126932,3072.7,3070.8,4.7593]
[1720503785129,3.50502157,3072.7,3070.8,4.7593]
[1720503785533,3.50502157,3072.7,3070.3,7.44]
[1720503785534,2.4999,3072.4,3070.3,4.6076]
[1720503785951,0.05373165,3072.3,3070.3,4.6076]
[1720503786279,3.05373165,3072.3,3070.3,4.6076]
[1720503786453,0.85536317,3072.2,3070.3,4.6076]
[1720503786638,0.05364685,3072.1,3070.3,4.6076]
[1720503786845,0.05364685,3072.1,3070.4,0.55]
[1720503787043,0.05364685,3072.1,3070.8,2.269]
[1720503787278,2.4999,3072.4,3070.9,0.61511471]
[1720503787585,0.30364581,3072.3,3070.9,0.61511471]
[1720503787769,0.30364581,3072.3,3070.9,3.61511471]
[1720503787939,0.30364581,3072.3,3070.9,0.55]
[1720503788277,0.30364581,3072.3,3070.9,3.0]
[1720503788496,0.30364581,3072.3,3070.4,3.0]
[1720503788794,0.28035458,3072.2,3070.4,3.0]
[1720503789275,0.0537394,3072.1,3070.4,3.0]
[1720503789887,0.0537394,3072.1,3070.5,0.55]
[1720503791679,2.2834,3072.0,3070.4,3.0]
[1720503791844,0.28736755,3071.9,3069.8,4.7674]
[1720503793756,0.28736755,3071.9,3069.9,3.0]
[1720503794008,0.28736755,3071.9,3070.3,2.269]
[1720503794261,0.28736755,3071.9,3070.4,0.55]
[1720503794466,0.25707676,3071.8,3070.4,3.55]
[1720503794686,0.05352596,3071.7,3070.4,3.55]
[1720503794901,2.4132,3071.6,3070.4,3.0]
[1720503795076,0.30015761,3071.5,3069.9,3.0]
[1720503795274,0.30015761,3071.5,3070.0,0.55]
[1720503796015,0.30015761,3071.5,3069.9,3.0]
[1720503796164,0.27133576,3071.4,3069.8,2.269]
[1720503796685,0.05331719,3071.3,3069.8,2.33413254]
[1720503796897,0.05331719,3071.3,3069.8,2.269]
[1720503798992,0.05331719,3071.3,3069.9,0.55]
[1720503799316,0.05331719,3071.3,3070.0,0.06513471]
[1720503799686,0.05331719,3071.3,3069.9,3.55]
[1720503802308,0.05331719,3071.3,3070.0,2.3201]
[1720503802510,0.05331719,3071.3,3070.1,0.55]
[1720503802709,0.05331719,3071.3,3070.3,1.703]
[1720503803248,0.05331719,3071.3,3070.3,1.76812813]
[1720503803738,0.05331719,3071.3,3070.7,1.703]
[1720503803901,0.05132157,3071.2,3070.7,1.703]
[1720503804101,2.4132,3071.6,3070.7,1.703]
[1720503804300,0.04984007,3071.5,3070.7,1.703]
[1720503805424,0.04984007,3071.5,3070.3,1.703]
[1720503805725,0.04984007,3071.5,3070.4,0.55]
[1720503807327,0.04984007,3071.5,3070.5,0.06512333]
[1720503807510,0.04984007,3071.5,3070.6,0.55]
[1720503807912,0.04984007,3071.5,3070.4,0.55]
[1720503809209,0.04984007,3071.5,3070.3,1.703]
[1720503809615,2.4657,3071.3,3069.3,7.44]
[1720503809936,2.4657,3070.9,3068.9,1.703]
[1720503810145,1.178206,3070.8,3068.9,1.76815311]
[1720503810304,1.12827445,3070.7,3069.3,1.703]
[1720503810510,0.04953317,3070.6,3069.3,1.7681484]
[1720503810751,0.24657,3070.8,3069.3,1.7681484]
[1720503811254,0.04953176,3070.7,3069.3,1.7681484]
[1720503811542,0.04953176,3070.7,3069.3,1.703]
[1720503812604,0.04953176,3070.7,3068.9,3.83974894]
[1720503812605,0.04953176,3070.7,3069.0,2.272]
[1720503812809,0.04953176,3070.7,3069.1,1.74901453]
[1720503813056,0.04953176,3070.7,3069.5,4.5233]
[1720503813257,0.04953176,3070.7,3069.6,1.74883117]
[1720503813566,0.04953176,3070.7,3069.6,3.61513441]
[1720503813727,0.04953176,3070.7,3069.7,1.13368471]
[1720503813931,0.04953176,3070.7,3069.8,0.55]
[1720503814236,2.4657,3070.9,3069.8,0.55]
[1720503814442,2.4657,3070.9,3069.7,3.0]
[1720503814443,0.0494244,3070.6,3069.6,3.0]
[1720503814645,0.04944348,3070.8,3069.6,3.0]
[1720503814826,0.24657,3070.8,3069.5,2.272]
[1720503815027,0.04954588,3070.7,3069.5,2.272]
[1720503815364,0.04954588,3070.7,3069.3,0.67903943]
[1720503815519,2.347,3070.6,3069.0,2.95103943]
[1720503815723,2.347,3070.6,3069.0,2.272]
[1720503815724,1.12846801,3070.5,3069.0,2.272]
[1720503815925,2.347,3070.6,3069.0,2.272]
[1720503816248,1.12848911,3070.5,3069.0,2.272]
[1720503816451,2.347,3070.6,3069.0,2.272]
[1720503816635,0.04935347,3070.4,3069.0,2.272]
[1720503816969,0.04933299,3070.3,3069.0,2.272]
[1720503817434,0.04933299,3070.3,3069.1,1.19914427]
[1720503817635,0.04933299,3070.3,3069.1,0.06515776]
[1720503817977,0.04933299,3070.3,3069.2,0.55]
[1720503818422,0.2347,3070.5,3069.2,0.55]
[1720503818622,0.04889286,3070.2,3069.2,0.55]
[1720503818852,0.2347,3070.5,3069.2,0.55]
[1720503818853,0.04916859,3070.4,3069.2,0.55]
[1720503819059,0.26308686,3070.4,3069.2,0.55]
[1720503819297,0.04912066,3070.3,3069.2,0.55]
[1720503820361,0.04912066,3070.3,3069.2,0.61514945]
[1720503820725,0.04912066,3070.3,3069.3,0.06514945]
[1720503821962,0.04912066,3070.3,3069.4,1.13389864]
[1720503822143,0.04912066,3070.3,3069.2,0.55]
[1720503823670,0.04912066,3070.3,3069.3,0.06514938]
[1720503824295,0.04912066,3070.3,3069.4,0.55]
[1720503824575,0.04916041,3070.2,3069.2,0.55]
[1720503825073,0.2347,3070.5,3069.1,3.0]
[1720503825375,0.2347,3070.5,3069.0,2.272]
[1720503825376,0.0491288,3070.4,3069.0,2.272]
[1720503825776,0.0491288,3070.4,3069.1,1.13393883]
[1720503825958,0.0491288,3070.4,3069.1,3.0]
[1720503826155,0.0491288,3070.4,3069.0,5.272]
[1720503826360,0.0491288,3070.4,3069.0,2.272]
[1720503826561,0.0491288,3070.4,3069.1,0.55]
[1720503826884,0.0491288,3070.4,3069.1,3.55]
[1720503827247,0.0491288,3070.4,3069.1,3.0]
[1720503827448,0.31221168,3070.4,3069.0,2.272]
[1720503827650,0.31221168,3070.4,3069.0,5.272]
[1720503827850,0.31221168,3070.4,3069.0,2.272]
[1720503828182,0.31221168,3070.4,3068.8,3.0]
[1720503828183,2.345,3070.3,3068.8,3.0]
[1720503828383,2.61072117,3070.2,3068.6,0.16747619]
[1720503828548,2.65975772,3070.2,3068.3,0.68115396]
[1720503828754,2.65975772,3070.2,3068.5,2.272]
[1720503828973,2.61072117,3070.2,3068.6,1.8804468]
[1720503829294,2.345,3070.2,3068.8,2.96755396]
[1720503829483,2.345,3070.2,3068.9,2.36529382]
[1720503829688,2.345,3070.2,3069.0,1.13413986]
[1720503829877,2.345,3070.2,3069.1,0.55]
[1720503830051,2.345,3070.2,3068.9,3.55]
[1720503830248,2.345,3070.2,3069.0,1.13396159]
[1720503830448,2.345,3070.2,3068.9,4.23137582]
[1720503830661,2.345,3070.2,3069.0,3.0]
[1720503830856,2.345,3070.2,3068.9,0.55]
[1720503831385,2.345,3070.2,3068.7,1.23137582]
[1720503831559,2.345,3070.2,3068.8,1.13402118]
[1720503832200,2.345,3070.2,3068.7,3.0]
[1720503832382,2.345,3070.2,3068.7,0.1634751]
[1720503832583,0.28348633,3070.1,3068.5,5.272]
[1720503832771,0.28348633,3070.1,3068.6,1.13412604]
[1720503832978,0.28348633,3070.1,3068.6,4.13412604]
[1720503833321,2.3669,3070.0,3068.3,0.68137582]
[1720503833601,2.3669,3070.0,3068.4,0.55]
[1720503833602,0.04894528,3069.9,3068.4,0.55]
[1720503833965,0.04894528,3069.9,3068.3,1.23137582]
[1720503834280,0.04894528,3069.9,3068.4,1.1341712]
[1720503834600,0.24158453,3069.8,3068.5,0.55]
[1720503834759,0.24158453,3069.8,3068.5,3.55]
[1720503835095,2.3669,3070.0,3068.5,3.55]
[1720503835308,2.3669,3070.0,3068.6,3.0]
[1720503835475,0.04888633,3069.9,3068.8,1.705]
[1720503835680,0.04888633,3069.9,3068.9,0.55]
[1720503835877,0.04888633,3069.9,3068.8,1.705]
[1720503836973,0.04888633,3069.9,3068.4,2.38637582]
[1720503837306,0.04888633,3069.9,3068.5,1.6841478]
[1720503837506,0.04888633,3069.9,3068.5,0.55]
[1720503838289,0.24157863,3069.8,3068.5,0.55]
[1720503838487,0.04888633,3069.9,3068.6,1.13411192]
[1720503838662,0.04873963,3069.7,3068.7,0.55]
[1720503839016,2.3669,3070.0,3068.7,0.55]
[1720503839161,2.3669,3070.0,3068.6,0.55]
[1720503839365,0.04878063,3069.9,3068.6,0.55]
[1720503839565,0.04878063,3069.9,3068.6,0.61515858]
[1720503839765,0.04878063,3069.9,3068.8,1.705]
[1720503839974,0.04878063,3069.9,3068.9,0.61515595]
[1720503840577,0.04878063,3069.9,3068.9,2.43058346]
[1720503840801,0.04878063,3069.9,3069.0,1.13395824]
[1720503841033,0.34074071,3069.8,3068.8,1.705]
[1720503841171,0.34074071,3069.8,3068.6,3.0]
[1720503841511,2.38,3069.7,3068.4,4.705]
[1720503841692,2.38,3069.7,3068.5,3.0]
[1720503841872,2.38,3069.7,3068.4,1.705]
[1720503842268,0.04867677,3069.6,3068.4,1.705]
[1720503843300,0.04867677,3069.6,3068.5,1.19930589]
[1720503843491,2.38,3069.7,3068.5,3.06516705]
[1720503843690,2.38,3069.7,3068.4,1.705]
[1720503843881,2.38,3069.7,3068.5,1.68414341]
[1720503844066,2.38,3069.7,3068.5,3.55]
[1720503844272,2.38,3069.7,3068.4,1.705]
[1720503844586,0.04862556,3069.6,3068.4,1.705]
[1720503844891,0.24286256,3069.5,3068.4,1.705]
[1720503845307,0.04858455,3069.4,3068.4,1.705]
[1720503845491,0.04858455,3069.4,3068.0,1.705]
[1720503845492,2.425,3069.3,3068.0,1.705]
[1720503845804,2.425,3069.3,3068.1,0.55]
[1720503847069,2.425,3069.3,3068.2,1.13422668]
[1720503847322,2.425,3069.3,3068.1,3.55]
[1720503847488,2.425,3069.3,3068.1,0.55]
[1720503847808,2.425,3069.3,3068.1,3.55]
[1720503848117,2.425,3069.3,3068.2,3.0]
[1720503848268,2.425,3069.3,3068.4,1.705]
[1720503848792,0.0485103,3069.2,3068.5,0.06516943]
[1720503848983,0.0485103,3069.2,3068.8,1.705]
[1720503849182,2.81754071,3069.8,3068.8,1.705]
[1720503849404,2.81754071,3069.8,3068.4,2.3502]
[1720503849405,0.04854781,3069.7,3068.4,1.705]
[1720503849614,2.4768,3069.6,3068.4,1.705]
[1720503850030,0.04863798,3069.5,3068.4,1.705]
[1720503850697,0.04863798,3069.5,3068.5,0.61516682]
[1720503851034,0.04863798,3069.5,3068.4,1.705]
[1720503851211,0.30118178,3069.5,3068.4,1.705]
[1720503851819,0.30118178,3069.5,3068.0,5.38689154]
[1720503851999,0.30118178,3069.5,3068.1,1.68426038]
[1720503852201,0.30118178,3069.5,3068.1,0.55]
[1720503852513,0.30118178,3069.5,3068.2,1.13424822]
[1720503852819,0.30118178,3069.5,3068.0,5.38689154]
[1720503853024,2.3924,3069.4,3068.1,1.13427638]
[1720503853341,2.3924,3069.4,3068.0,4.705]
[1720503853639,0.04871702,3069.3,3068.4,1.705]
[1720503853835,0.04871702,3069.3,3068.5,0.06516589]
[1720503854147,0.04871702,3069.3,3068.4,1.705]
[1720503854437,2.3924,3069.4,3068.4,1.705]
[1720503854798,2.3924,3069.4,3068.5,0.06516591]
[1720503855301,2.3924,3069.4,3068.6,1.13418368]
[1720503855505,2.3924,3069.4,3068.5,3.0]
[1720503856103,1.01542997,3069.8,3068.1,2.3832305]
[1720503856104,2.39415565,3069.3,3068.2,3.0]
[1720503856299,2.39415565,3069.3,3068.0,3.40633896]
[1720503856300,2.39415565,3069.3,3068.0,7.0882305]
[1720503856603,2.39415565,3069.3,3068.1,3.51753059]
[1720503856840,2.39415565,3069.3,3068.2,5.90081037]
[1720503857038,2.3455,3069.3,3068.4,1.705]
[1720503857244,2.3455,3069.3,3068.5,1.19946593]
[1720503857440,2.3455,3069.3,3068.6,1.13430009]
[1720503857616,2.3455,3069.3,3068.7,0.06516584]
[1720503857803,2.4277,3070.1,3068.7,0.06516584]
[1720503858009,0.04874941,3070.0,3068.7,0.06516584]
[1720503858209,1.128622,3069.9,3068.7,0.06516584]
[1720503858428,0.04874941,3070.0,3068.7,0.06516584]
[1720503858630,0.04868088,3069.8,3068.7,0.06516584]
[1720503858820,0.04870137,3069.9,3068.7,0.06516584]
[1720503859016,2.4277,3070.1,3068.6,1.70117225]
[1720503859017,0.04866038,3069.7,3068.6,1.70117225]
[1720503859340,0.0485601,3069.8,3069.2,1.705]
[1720503859543,2.4277,3070.1,3069.3,1.19927207]
[1720503859859,0.04864931,3070.0,3069.3,0.06514934]
[1720503860341,0.04864931,3070.0,3069.1,1.70117225]
[1720503860507,0.04864931,3070.0,3069.1,1.7010343]
[1720503860706,0.04864931,3070.0,3069.1,1.70102075]
[1720503860926,0.04864931,3070.0,3069.1,1.70104332]
[1720503861141,0.04864931,3070.0,3069.0,1.70108253]
[1720503861306,0.04864931,3070.0,3069.1,1.13405194]
[1720503861507,0.04864931,3070.0,3069.2,1.74915581]
[1720503861713,0.04864931,3070.0,3069.3,2.90012158]
[1720503861921,0.04864931,3070.0,3069.4,2.83497161]
[1720503862120,0.04864931,3070.0,3069.5,0.06514994]
[1720503862933,0.04864931,3070.0,3069.6,5.22147856]
[1720503863149,0.04864931,3070.0,3069.7,5.89972479]
[1720503863350,2.2996,3070.6,3069.8,2.89972482]
[1720503863528,0.04881592,3069.9,3069.8,0.0651378]
[1720503863726,2.3357,3071.0,3069.8,4.47219237]
[1720503863962,2.3357,3071.0,3070.0,1.705]
[1720503864133,0.04897692,3070.9,3070.4,0.68303778]
[1720503864328,2.3357,3071.5,3070.5,3.44897152]
[1720503864541,2.3357,3071.5,3070.4,3.40525809]
[1720503864734,2.3357,3071.5,3070.4,1.705]
[1720503864940,0.04914317,3071.4,3070.3,3.0]
[1720503865163,0.28271317,3071.4,3070.2,3.0]
[1720503865361,0.28271317,3071.4,3070.0,3.40525809]
[1720503865362,0.28271317,3071.4,3070.1,3.0]
[1720503865536,0.28271317,3071.4,3070.2,0.55]
[1720503865737,0.28271317,3071.4,3070.1,0.55]
[1720503866170,2.3259,3071.3,3070.0,3.0]
[1720503866471,2.4646,3071.1,3069.6,2.38803778]
[1720503866644,2.4646,3070.9,3069.2,4.08829587]
[1720503866831,2.4646,3070.7,3069.3,1.13389837]
[1720503867237,0.04917352,3070.6,3069.2,1.705]
[1720503867465,0.04917352,3070.6,3069.3,1.13388252]
[1720503867667,0.04917352,3070.6,3069.4,1.13386815]